[Event "58th Akiba Rubinstein C 2022"]
[Site "Polanica-Zdroj"]
[Date "2022.08.14"]
[Round "2.1"]
[White "Poniewierski, Piotr"]
[Black "Marusenko, Petr"]
[Result "0-1"]
[ECO "D34"]
[WhiteElo "1747"]
[BlackElo "2075"]
[Annotator "NA RC"]
[PlyCount "108"]
[EventDate "2022.08.13"]
[EventCountry "POL"]
[SourceTitle "playchess.com"]
[Source "ChessBase"]
[SourceQuality "1"]
[TimeControl "40/5400+30:1800+30"]

1. c4 {[%emt 0:00:09]} e6 {[%emt 0:00:09]} 2. Nf3 {[%emt 0:00:41]} d5 {[%emt 0:00:06]} 3. g3 {[%emt 0:00:11]} c5 {[%emt 0:00:03]} 4. cxd5 {[%emt 0:00:15]} exd5 {[%emt 0:00:06]} 5. d4 {[%emt 0:00:10]} Nc6 {[%emt 0:00:11]} 6. Nc3 {[%emt 0:01:20]} Nf6 {[%emt 0:00:08]} 7. Bg2 {[%emt 0:00:17]} Be7 {[%emt 0:00:11]} 8. Bg5 {[%emt 0:01:51]} O-O {[%emt 0:00:19]} 9. O-O {[%emt 0:00:16]} c4 {[%emt 0:00:05]} 10. b3 {[%emt 0:04:19]} Qa5 {[%emt 0:01:07]} 11. Na4 {[%emt 0:08:34]} h6 {[%emt 0:04:38]} 12. Bd2 {[%emt 0:02:45]} Qd8 {[%emt 0:00:24]} 13. Ne5 {[%emt 0:07:56]} Nxd4 {[%emt 0:13:16]} 14. Bxh6 {[%emt 0:00:22]} Nf5 {[%emt 0:10:06]} 15. Bg5 {[%emt 0:02:35]} cxb3 {[%emt 0:02:14]} 16. Qxb3 {[%emt 0:03:13]} Nd4 {[%emt 0:06:32]} 17. Qd3 {[%emt 0:08:29]} Ne6 {[%emt 0:01:26]} 18. Bc1 {[%emt 0:02:21]} Qa5 {[%emt 0:07:08]} 19. Qd1 {[%emt 0:06:47]} Rd8 {[%emt 0:19:59]} 20. Rb1 {[%emt 0:05:47]} Ne4 {[%emt 0:08:00]} 21. Bb2 {[%emt 0:17:04]} Bf6 {[%emt 0:00:58]} 22. Qc2 {[%emt 0:06:33]} Bxe5 {[%emt 0:08:50]} 23. Bxe5 {[%emt 0:00:10]} Bd7 {[%emt 0:00:06]} 24. Nc3 {[%emt 0:06:43]} Rac8 {[%emt 0:00:32]} 25. Bxe4 {[%emt 0:00:46]} dxe4 {[%emt 0:00:10]} 26. Qxe4 {[%emt 0:01:04]} Rxc3 {[%emt 0:00:57]} 27. Bxc3 {[%emt 0:00:35]} Qxc3 {[%emt 0:00:02]} 28. Qxb7 {[%emt 0:02:36]} Nd4 {[%emt 0:03:20]} 29. Qb2 {[%emt 0:00:42]} Bf5 {[%emt 0:00:31]} 30. Qxc3 {[%emt 0:00:58]} Nxe2+ {[%emt 0:00:10]} 31. Kg2 {[%emt 0:00:18]} Nxc3 {[%emt 0:00:07]} 32. Rb2 {[%emt 0:01:34]} Be6 {[%emt 0:01:33]} 33. a3 {[%emt 0:01:35]} Rd3 {[%emt 0:01:48]} 34. Rc1 {[%emt 0:03:41]} Bd5+ {[%emt 0:00:27]} 35. Kf1 {[%emt 0:01:14]} a5 {[%emt 0:01:23]} 36. Ke1 {[%emt 0:02:09]} Ne4 37. Rd1 {[%emt 0:00:53]} Rxd1+ {[%emt 0:07:23]} 38. Kxd1 {[%emt 0:00:13]} a4 {[%emt 0:00:02]} 39. f4 {[%emt 0:01:55]} Bb3+ {[%emt 0:00:25]} 40. Kc1 {[%emt 0:00:00]} Nd6 {[%emt 0:00:00]} 41. Rxb3 {[%emt 0:06:14]} axb3 {[%emt 0:01:45]} 42. Kb2 {[%emt 0:00:05]} Kf8 {[%emt 0:00:34]} 43. Kxb3 {[%emt 0:00:06]} Ke7 {[%emt 0:00:01]} 44. Kb4 {[%emt 0:00:27]} Kd7 {[%emt 0:00:17]} 45. Kc5 {[%emt 0:00:24]} Kc7 {[%emt 0:00:16]} 46. a4 {[%emt 0:02:24]} Ne4+ {[%emt 0:00:53]} 47. Kd4 {[%emt 0:00:29]} Nd2 {[%emt 0:00:22]} 48. Ke5 {[%emt 0:01:21]} Nf3+ {[%emt 0:00:27]} 49. Kf5 {[%emt 0:00:07]} Nxh2 {[%emt 0:00:08]} 50. Kg5 {[%emt 0:00:33]} Nf3+ {[%emt 0:01:45]} 51. Kh5 {[%emt 0:00:11]} Nd4 {[%emt 0:05:13]} 52. g4 {[%emt 0:02:48]} Ne6 {[%emt 0:04:30]} 53. f5 {[%emt 0:00:18]} Nc5 {[%emt 0:00:07]} 54. a5 {[%emt 0:02:27]} Kd6 {[%emt 0:04:05]} 0-1

[Event "58th Akiba Rubinstein C 2022"]
[Site "Polanica-Zdroj"]
[Date "2022.08.14"]
[Round "2.2"]
[White "Michalik, Marek"]
[Black "Shilov, Sergej"]
[Result "0-1"]
[ECO "B63"]
[WhiteElo "1742"]
[BlackElo "2048"]
[Annotator "NA RC"]
[PlyCount "55"]
[EventDate "2022.08.13"]
[EventCountry "POL"]
[SourceTitle "playchess.com"]
[Source "ChessBase"]
[SourceQuality "1"]
[TimeControl "40/5400+30:1800+30"]

1. e4 {[%emt 0:00:24]} c5 {[%emt 0:00:17]} 2. Nf3 {[%emt 0:00:12]} Nf6 {[%emt 0:00:28]} 3. Nc3 {[%emt 0:00:32]} Nc6 {[%emt 0:00:35]} 4. d4 {[%emt 0:00:25]} cxd4 {[%emt 0:00:48]} 5. Nxd4 {[%emt 0:00:13]} d6 {[%emt 0:00:21]} 6. Bg5 {[%emt 0:01:23]} e6 7. Qd2 {[%emt 0:00:44]} Be7 {[%emt 0:02:33]} 8. O-O-O {[%emt 0:00:43]} O-O {[%emt 0:01:08]} 9. Ndb5 {[%emt 0:02:47]} Qa5 {[%emt 0:05:03]} 10. Bxf6 {[%emt 0:02:05]} Bxf6 {[%emt 0:01:25]} 11. Qxd6 {[%emt 0:07:04]} a6 12. Na3 {[%emt 0:14:57]} Bxc3 {[%emt 0:04:26]} 13. Nc4 {[%emt 0:05:42]} Bb4 {[%emt 0:06:38]} 14. Qxf8+ {[%emt 0:04:52]} Kxf8 {[%emt 0:00:12]} 15. Nxa5 {[%emt 0:00:10]} Bxa5 {[%emt 0:00:02]} 16. Be2 {[%emt 0:01:28]} Ke7 {[%emt 0:02:08]} 17. f4 {[%emt 0:00:21]} Bb6 {[%emt 0:02:00]} 18. Rd3 {[%emt 0:02:11]} Bd7 {[%emt 0:02:29]} 19. Rhd1 {[%emt 0:01:01]} Bc8 {[%emt 0:05:40]} 20. g3 {[%emt 0:00:30]} g6 {[%emt 0:06:40]} 21. Bf3 {[%emt 0:01:28]} e5 {[%emt 0:00:49]} 22. c3 {[%emt 0:02:51]} Be6 {[%emt 0:00:49]} 23. b3 {[%emt 0:00:44]} Bc7 24. Bg2 {[%emt 0:10:36]} exf4 {[%emt 0:01:18]} 25. gxf4 {[%emt 0:01:57]} Bxf4+ {[%emt 0:00:33]} 26. Kc2 {[%emt 0:00:46]} Ne5 {[%emt 0:04:03]} 27. Rd4 {[%emt 0:01:10]} Ng4 {[%emt 0:00:28]} 28. Bf1 0-1

[Event "58th Akiba Rubinstein C 2022"]
[Site "Polanica-Zdroj"]
[Date "2022.08.14"]
[Round "2.3"]
[White "fainberg, Boris"]
[Black "Galyga, Jozef"]
[Result "1-0"]
[ECO "A04"]
[WhiteElo "2015"]
[BlackElo "1695"]
[Annotator "NA RC"]
[PlyCount "60"]
[EventDate "2022.08.13"]
[EventCountry "POL"]
[SourceTitle "playchess.com"]
[Source "ChessBase"]
[SourceQuality "1"]
[TimeControl "40/5400+30:1800+30"]

1. Nf3 {[%emt 0:00:10]} e6 {[%emt 0:00:37]} 2. c4 {[%emt 0:00:28]} f5 {[%emt 0:00:08]} 3. g3 {[%emt 0:04:23]} Nf6 {[%emt 0:00:10]} 4. Bg2 {[%emt 0:01:09]} d5 {[%emt 0:00:19]} 5. O-O {[%emt 0:02:38]} Bd6 {[%emt 0:00:28]} 6. b3 {[%emt 0:04:01]} Qe7 {[%emt 0:00:47]} 7. Bb2 {[%emt 0:03:49]} O-O {[%emt 0:00:15]} 8. e3 {[%emt 0:13:43]} Nbd7 9. d3 {[%emt 0:04:11]} c6 {[%emt 0:11:05]} 10. Qc2 {[%emt 0:05:35]} e5 {[%emt 0:02:53]} 11. cxd5 {[%emt 0:01:58]} Nxd5 {[%emt 0:00:27]} 12. a3 {[%emt 0:12:17]} N7f6 {[%emt 0:03:19]} 13. e4 {[%emt 0:00:45]} Nb6 {[%emt 0:06:01]} 14. Nbd2 {[%emt 0:01:07]} Be6 {[%emt 0:03:27]} 15. Nxe5 {[%emt 0:08:17]} Rad8 {[%emt 0:03:36]} 16. b4 {[%emt 0:03:51]} fxe4 {[%emt 0:13:15]} 17. dxe4 {[%emt 0:00:20]} Bxe5 {[%emt 0:04:03]} 18. Bxe5 {[%emt 0:00:07]} Qd7 {[%emt 0:05:19]} 19. Nb3 {[%emt 0:07:03]} Bh3 {[%emt 0:08:46]} 20. Nc5 {[%emt 0:00:50]} Qg4 {[%emt 0:05:39]} 21. f3 {[%emt 0:04:44]} Qh5 {[%emt 0:00:16]} 22. Bc7 Bxg2 {[%emt 0:05:34]} 23. Kxg2 {[%emt 0:02:46]} Rc8 {[%emt 0:00:43]} 24. Bd6 {[%emt 0:00:55]} Rfd8 {[%emt 0:02:59]} 25. Be7 {[%emt 0:02:04]} Rd4 {[%emt 0:04:17]} 26. Rad1 {[%emt 0:01:55]} Rc4 {[%emt 0:01:13]} 27. Qb3 {[%emt 0:02:32]} Qf7 {[%emt 0:01:24]} 28. Bd8 {[%emt 0:01:36]} Nbd7 {[%emt 0:05:16]} 29. Be7 Nb6 30. Bd8 Nbd7 1-0

[Event "58th Akiba Rubinstein C 2022"]
[Site "Polanica-Zdroj"]
[Date "2022.08.14"]
[Round "2.4"]
[White "Kruczynski, Marek"]
[Black "Mazalon, Mariusz"]
[Result "1-0"]
[ECO "B21"]
[WhiteElo "1651"]
[BlackElo "1994"]
[Annotator "NA RC"]
[PlyCount "45"]
[EventDate "2022.08.13"]
[EventCountry "POL"]
[SourceTitle "playchess.com"]
[Source "ChessBase"]
[SourceQuality "1"]
[TimeControl "40/5400+30:1800+30"]

1. e4 {[%emt 0:00:14]} c5 {[%emt 0:00:43]} 2. f4 {[%emt 0:01:07]} d5 {[%emt 0:02:36]} 3. Nf3 {[%emt 0:01:41]} dxe4 {[%emt 0:10:02]} 4. Ne5 {[%emt 0:01:00]} Nd7 {[%emt 0:05:09]} 5. Nc3 {[%emt 0:02:04]} Ngf6 {[%emt 0:02:55]} 6. d3 {[%emt 0:05:04]} exd3 {[%emt 0:01:40]} 7. Bxd3 {[%emt 0:01:04]} e6 {[%emt 0:00:14]} 8. Qf3 Qc7 {[%emt 0:05:55]} 9. O-O {[%emt 0:14:57]} a6 {[%emt 0:01:24]} 10. Nxf7 {[%emt 0:12:34]} Kxf7 {[%emt 0:01:47]} 11. f5 {[%emt 0:00:14]} Ne5 {[%emt 0:04:08]} 12. Qg3 c4 {[%emt 0:10:44]} 13. Be4 {[%emt 0:09:21]} Bd6 {[%emt 0:10:11]} 14. fxe6+ {[%emt 0:07:42]} Bxe6 {[%emt 0:00:07]} 15. Nd5 {[%emt 0:00:30]} Qa5 {[%emt 0:13:59]} 16. Nxf6 {[%emt 0:10:38]} gxf6 {[%emt 0:00:08]} 17. Rxf6+ {[%emt 0:02:45]} Kxf6 {[%emt 0:00:40]} 18. Bg5+ {[%emt 0:01:45]} Kf7 {[%emt 0:00:44]} 19. Qf4+ {[%emt 0:06:15]} Ke8 {[%emt 0:00:49]} 20. Qf6 {[%emt 0:01:46]} Kd7 {[%emt 0:00:37]} 21. Rd1 {[%emt 0:01:04]} Qc5+ {[%emt 0:02:39]} 22. Kh1 {[%emt 0:00:47]} Rhf8 {[%emt 0:00:16]} 23. Qe7+ {[%emt 0:00:44]} 1-0

[Event "58th Akiba Rubinstein C 2022"]
[Site "Polanica-Zdroj"]
[Date "2022.08.14"]
[Round "2.5"]
[White "Wasylkiewicz, Andrzej"]
[Black "Kwiecien, Zbigniew"]
[Result "0-1"]
[ECO "B26"]
[WhiteElo "1691"]
[BlackElo "1937"]
[Annotator "NA RC"]
[PlyCount "40"]
[EventDate "2022.08.13"]
[EventCountry "POL"]
[SourceTitle "playchess.com"]
[Source "ChessBase"]
[SourceQuality "1"]
[TimeControl "40/5400+30:1800+30"]

1. e4 {[%emt 0:00:04]} c5 {[%emt 0:00:16]} 2. Nc3 {[%emt 0:00:34]} d6 3. g3 {[%emt 0:00:28]} g6 {[%emt 0:00:49]} 4. Bg2 {[%emt 0:00:30]} Bg7 {[%emt 0:00:19]} 5. d3 {[%emt 0:01:14]} Nc6 {[%emt 0:00:51]} 6. Be3 {[%emt 0:01:25]} h5 {[%emt 0:00:21]} 7. h3 {[%emt 0:04:27]} Bd7 {[%emt 0:00:59]} 8. Qd2 {[%emt 0:02:15]} a6 {[%emt 0:01:31]} 9. Nge2 {[%emt 0:01:56]} Nf6 {[%emt 0:02:20]} 10. O-O {[%emt 0:01:54]} h4 {[%emt 0:01:02]} 11. Kh2 {[%emt 0:07:03]} hxg3+ {[%emt 0:02:38]} 12. fxg3 {[%emt 0:00:23]} Ng4+ {[%emt 0:00:50]} 13. Kg1 {[%emt 0:01:56]} Nxe3 {[%emt 0:00:20]} 14. Qxe3 {[%emt 0:00:12]} Bxh3 {[%emt 0:00:39]} 15. Qf4 {[%emt 0:08:17]} Be6 16. Rab1 {[%emt 0:06:29]} Nd4 {[%emt 0:06:14]} 17. Qd2 {[%emt 0:04:52]} Qd7 {[%emt 0:03:28]} 18. Nf4 {[%emt 0:03:21]} Bh6 {[%emt 0:01:08]} 19. Ncd5 {[%emt 0:02:21]} Bxd5 {[%emt 0:00:57]} 20. exd5 {[%emt 0:00:11]} Qg4 0-1

[Event "58th Akiba Rubinstein C 2022"]
[Site "Polanica-Zdroj"]
[Date "2022.08.14"]
[Round "2.6"]
[White "Pyka, Roman"]
[Black "Szydelko, Kazimierz"]
[Result "1-0"]
[ECO "D24"]
[WhiteElo "1881"]
[BlackElo "1661"]
[Annotator "NA RC"]
[PlyCount "121"]
[EventDate "2022.08.13"]
[EventCountry "POL"]
[SourceTitle "playchess.com"]
[Source "ChessBase"]
[SourceQuality "1"]
[TimeControl "40/5400+30:1800+30"]

1. Nf3 {[%emt 0:00:15]} d5 {[%emt 0:00:18]} 2. d4 {[%emt 0:00:10]} Nf6 {[%emt 0:00:18]} 3. c4 {[%emt 0:00:34]} dxc4 {[%emt 0:00:30]} 4. Nc3 {[%emt 0:00:48]} a6 {[%emt 0:00:41]} 5. a4 {[%emt 0:00:20]} e6 {[%emt 0:00:28]} 6. e3 {[%emt 0:00:07]} c5 {[%emt 0:00:13]} 7. Bxc4 {[%emt 0:00:19]} Nc6 {[%emt 0:03:00]} 8. O-O {[%emt 0:00:16]} Qb6 {[%emt 0:05:47]} 9. a5 {[%emt 0:09:50]} Nxa5 {[%emt 0:20:08]} 10. Qa4+ {[%emt 0:00:28]} Nc6 {[%emt 0:00:12]} 11. Ne5 {[%emt 0:02:11]} Bd6 {[%emt 0:06:29]} 12. Nxc6 {[%emt 0:03:59]} bxc6 {[%emt 0:00:20]} 13. d5 {[%emt 0:01:59]} exd5 {[%emt 0:02:30]} 14. Bxd5 {[%emt 0:00:46]} Bd7 {[%emt 0:01:16]} 15. Bf3 {[%emt 0:01:27]} O-O {[%emt 0:03:51]} 16. Rd1 {[%emt 0:03:47]} Qc7 {[%emt 0:06:30]} 17. h3 {[%emt 0:08:59]} Rfd8 {[%emt 0:02:55]} 18. Ne4 {[%emt 0:02:57]} Nxe4 {[%emt 0:05:30]} 19. Qxe4 Be6 {[%emt 0:04:48]} 20. Bd2 {[%emt 0:02:44]} Bd5 {[%emt 0:05:06]} 21. Qg4 {[%emt 0:00:17]} Bxf3 {[%emt 0:07:57]} 22. Qxf3 {[%emt 0:01:24]} Be5 {[%emt 0:00:46]} 23. Ba5 {[%emt 0:05:41]} Rxd1+ {[%emt 0:00:44]} 24. Qxd1 {[%emt 0:00:07]} Qb7 {[%emt 0:01:10]} 25. Bc3 {[%emt 0:02:33]} Bxc3 {[%emt 0:01:13]} 26. bxc3 {[%emt 0:00:08]} Qb2 {[%emt 0:03:44]} 27. Rxa6 {[%emt 0:00:46]} Rf8 {[%emt 0:13:08]} 28. Qa1 {[%emt 0:00:35]} Qxa1+ {[%emt 0:02:38]} 29. Rxa1 {[%emt 0:00:08]} Rc8 {[%emt 0:00:40]} 30. Ra5 {[%emt 0:00:05]} Kf8 {[%emt 0:00:16]} 31. Rxc5 {[%emt 0:00:42]} Ke7 {[%emt 0:00:05]} 32. Ra5 {[%emt 0:00:23]} Rc7 {[%emt 0:00:17]} 33. Kf1 {[%emt 0:00:29]} Rb7 {[%emt 0:01:12]} 34. Ra2 {[%emt 0:01:56]} Kd6 {[%emt 0:01:50]} 35. Ke2 {[%emt 0:00:07]} Kc5 {[%emt 0:00:12]} 36. Kd3 {[%emt 0:00:17]} Rd7+ {[%emt 0:00:33]} 37. Kc2 {[%emt 0:00:08]} Rb7 {[%emt 0:01:00]} 38. Ra5+ {[%emt 0:00:18]} Kd6 {[%emt 0:00:15]} 39. e4 {[%emt 0:01:02]} Re7 {[%emt 0:00:46]} 40. Kd3 {[%emt 0:00:00]} Rb7 {[%emt 0:00:00]} 41. Rf5 {[%emt 0:02:21]} f6 {[%emt 0:01:10]} 42. h4 {[%emt 0:01:01]} Ke6 {[%emt 0:03:35]} 43. Rc5 {[%emt 0:04:52]} Kd6 {[%emt 0:00:38]} 44. Ra5 {[%emt 0:00:27]} g6 {[%emt 0:00:47]} 45. Ra2 {[%emt 0:04:53]} Re7 {[%emt 0:03:55]} 46. f4 Rb7 {[%emt 0:00:56]} 47. Re2 {[%emt 0:02:47]} Rb1 {[%emt 0:01:14]} 48. Re3 {[%emt 0:03:07]} Rh1 {[%emt 0:00:44]} 49. g3 {[%emt 0:00:11]} h5 50. e5+ {[%emt 0:00:16]} fxe5 {[%emt 0:04:27]} 51. Rxe5 {[%emt 0:00:07]} Rd1+ {[%emt 0:02:26]} 52. Kc4 {[%emt 0:01:27]} Kd7 {[%emt 0:02:08]} 53. Rg5 {[%emt 0:02:50]} Rd6 {[%emt 0:00:22]} 54. Kc5 {[%emt 0:00:22]} Kc7 {[%emt 0:01:11]} 55. Kc4 {[%emt 0:00:19]} Rf6 {[%emt 0:01:15]} 56. Kd4 {[%emt 0:00:40]} Kd6 {[%emt 0:03:04]} 57. c4 {[%emt 0:01:41]} Kd7 {[%emt 0:01:51]} 58. f5 {[%emt 0:03:34]} gxf5 {[%emt 0:00:27]} 59. Ke5 {[%emt 0:00:08]} Rh6 {[%emt 0:07:37]} 60. Kxf5 {[%emt 0:02:10]} Kc7 {[%emt 0:01:41]} 61. c5 {[%emt 0:03:03]} 1-0

[Event "58th Akiba Rubinstein C 2022"]
[Site "Polanica-Zdroj"]
[Date "2022.08.14"]
[Round "2.7"]
[White "Wziatek, Marek"]
[Black "Gromczak, Dariusz"]
[Result "0-1"]
[ECO "A10"]
[WhiteElo "1617"]
[BlackElo "1906"]
[Annotator "NA RC"]
[PlyCount "41"]
[EventDate "2022.08.13"]
[EventCountry "POL"]
[SourceTitle "playchess.com"]
[Source "ChessBase"]
[SourceQuality "1"]
[TimeControl "40/5400+30:1800+30"]

1. c4 {[%emt 0:00:04]} g6 {[%emt 0:00:08]} 2. Nc3 {[%emt 0:00:10]} Bg7 {[%emt 0:00:20]} 3. Nf3 {[%emt 0:00:45]} e6 {[%emt 0:00:45]} 4. d4 {[%emt 0:00:44]} Ne7 {[%emt 0:00:59]} 5. e4 {[%emt 0:00:30]} d5 {[%emt 0:00:15]} 6. Bg5 {[%emt 0:00:57]} h6 {[%emt 0:01:30]} 7. Bh4 {[%emt 0:02:52]} O-O {[%emt 0:03:05]} 8. Be2 {[%emt 0:01:32]} g5 {[%emt 0:06:12]} 9. Bg3 {[%emt 0:00:53]} dxe4 {[%emt 0:00:18]} 10. Nxe4 {[%emt 0:00:26]} f5 {[%emt 0:00:40]} 11. Nexg5 {[%emt 0:03:40]} hxg5 {[%emt 0:00:18]} 12. Be5 {[%emt 0:00:59]} Bxe5 {[%emt 0:09:09]} 13. Nxe5 {[%emt 0:03:07]} Nbc6 {[%emt 0:02:32]} 14. Qc1 Nxe5 {[%emt 0:01:03]} 15. dxe5 {[%emt 0:06:35]} Ng6 {[%emt 0:01:09]} 16. Qc3 {[%emt 0:00:35]} c5 {[%emt 0:06:30]} 17. Rd1 {[%emt 0:01:00]} Qc7 {[%emt 0:01:08]} 18. Rd6 {[%emt 0:01:37]} Qg7 {[%emt 0:01:34]} 19. Bh5 {[%emt 0:04:03]} Qxe5+ {[%emt 0:02:31]} 20. Qxe5 {[%emt 0:00:24]} Nxe5 {[%emt 0:00:04]} 21. b3 {[%emt 0:02:23]} 0-1

[Event "58th Akiba Rubinstein C 2022"]
[Site "Polanica-Zdroj"]
[Date "2022.08.14"]
[Round "2.8"]
[White "Fikus, Zygmunt"]
[Black "Wasik, Jozef"]
[Result "1/2-1/2"]
[ECO "A11"]
[WhiteElo "1891"]
[BlackElo "1631"]
[Annotator "NA RC"]
[PlyCount "32"]
[EventDate "2022.08.13"]
[EventCountry "POL"]
[SourceTitle "playchess.com"]
[Source "ChessBase"]
[SourceQuality "1"]
[TimeControl "40/5400+30:1800+30"]

1. c4 {[%emt 0:00:26]} c6 {[%emt 0:01:01]} 2. Nf3 {[%emt 0:01:55]} d5 {[%emt 0:00:36]} 3. g3 {[%emt 0:01:50]} Nf6 {[%emt 0:00:53]} 4. Bg2 {[%emt 0:00:21]} Bf5 {[%emt 0:02:34]} 5. d4 {[%emt 0:02:10]} e6 {[%emt 0:00:36]} 6. Nc3 {[%emt 0:00:49]} Nbd7 {[%emt 0:01:03]} 7. cxd5 {[%emt 0:00:44]} exd5 8. O-O Bd6 {[%emt 0:03:19]} 9. Re1 {[%emt 0:00:46]} O-O {[%emt 0:01:54]} 10. Nh4 {[%emt 0:00:39]} Be6 {[%emt 0:09:55]} 11. Qd3 {[%emt 0:10:38]} Re8 {[%emt 0:01:54]} 12. f4 {[%emt 0:02:37]} Nf8 {[%emt 0:03:03]} 13. Nf3 {[%emt 0:03:28]} Qc8 {[%emt 0:03:43]} 14. Ne5 {[%emt 0:15:22]} Bb4 {[%emt 0:06:25]} 15. Nf3 Bd6 16. Ne5 Bb4 1/2-1/2

[Event "58th Akiba Rubinstein C 2022"]
[Site "Polanica-Zdroj"]
[Date "2022.08.14"]
[Round "2.9"]
[White "Wrzos, Waldemar"]
[Black "Kawula, Andrzej"]
[Result "0-1"]
[ECO "C17"]
[WhiteElo "1610"]
[BlackElo "1870"]
[Annotator "NA RC"]
[PlyCount "65"]
[EventDate "2022.08.13"]
[EventCountry "POL"]
[SourceTitle "playchess.com"]
[Source "ChessBase"]
[SourceQuality "1"]
[TimeControl "40/5400+30:1800+30"]

1. e4 {[%emt 0:00:04]} e6 {[%emt 0:00:00]} 2. Nc3 {[%emt 0:00:22]} d5 {[%emt 0:00:06]} 3. d4 {[%emt 0:00:25]} Bb4 {[%emt 0:00:14]} 4. e5 {[%emt 0:01:25]} c5 {[%emt 0:00:12]} 5. Be3 {[%emt 0:02:04]} cxd4 {[%emt 0:01:32]} 6. Qxd4 {[%emt 0:02:06]} Nc6 {[%emt 0:00:46]} 7. Bb5 {[%emt 0:00:50]} Qa5 {[%emt 0:01:29]} 8. Bxc6+ {[%emt 0:04:14]} bxc6 {[%emt 0:00:09]} 9. Bd2 {[%emt 0:00:53]} Ne7 {[%emt 0:01:02]} 10. a3 {[%emt 0:02:29]} c5 {[%emt 0:01:14]} 11. Qg4 {[%emt 0:01:38]} O-O {[%emt 0:02:07]} 12. Nf3 {[%emt 0:00:34]} Ba6 {[%emt 0:05:01]} 13. O-O-O {[%emt 0:01:09]} Bxc3 {[%emt 0:00:35]} 14. Bxc3 {[%emt 0:00:46]} Qb6 15. b3 {[%emt 0:08:14]} d4 {[%emt 0:04:05]} 16. Bb2 {[%emt 0:00:33]} Be2 {[%emt 0:00:22]} 17. Rd2 {[%emt 0:01:03]} d3 {[%emt 0:06:48]} 18. Qc4 {[%emt 0:02:25]} Bxf3 {[%emt 0:00:46]} 19. gxf3 {[%emt 0:00:02]} dxc2 {[%emt 0:00:32]} 20. Rg1 {[%emt 0:06:16]} Rfd8 {[%emt 0:02:45]} 21. Kxc2 {[%emt 0:01:13]} Rxd2+ {[%emt 0:00:52]} 22. Kxd2 {[%emt 0:00:01]} Nf5 {[%emt 0:01:50]} 23. Rc1 {[%emt 0:07:13]} Rd8+ {[%emt 0:05:03]} 24. Ke2 {[%emt 0:02:24]} h6 {[%emt 0:04:34]} 25. Rc3 Rd5 {[%emt 0:05:22]} 26. Rd3 {[%emt 0:10:29]} Qc6 {[%emt 0:05:18]} 27. a4 {[%emt 0:03:29]} Ne7 {[%emt 0:01:02]} 28. Qe4 {[%emt 0:01:25]} Qd7 {[%emt 0:01:11]} 29. Ba3 {[%emt 0:01:07]} Qc7 {[%emt 0:01:34]} 30. f4 {[%emt 0:00:13]} Qc6 {[%emt 0:05:26]} 31. Rc3 {[%emt 0:04:19]} Nf5 32. Rd3 Ne7 33. Rc3 0-1

[Event "58th Akiba Rubinstein C 2022"]
[Site "Polanica-Zdroj"]
[Date "2022.08.14"]
[Round "2.10"]
[White "Krupa, Jerzy"]
[Black "Kwiek, Janusz"]
[Result "1-0"]
[ECO "C41"]
[WhiteElo "1771"]
[BlackElo "1441"]
[Annotator "NA RC"]
[PlyCount "67"]
[EventDate "2022.08.13"]
[EventCountry "POL"]
[SourceTitle "playchess.com"]
[Source "ChessBase"]
[SourceQuality "1"]
[TimeControl "40/5400+30:1800+30"]

1. e4 {[%emt 0:00:04]} d6 {[%emt 0:00:12]} 2. d4 {[%emt 0:00:10]} e5 {[%emt 0:00:18]} 3. Nf3 {[%emt 0:00:34]} exd4 {[%emt 0:01:57]} 4. Nxd4 {[%emt 0:00:01]} Nf6 {[%emt 0:00:08]} 5. Nc3 {[%emt 0:00:28]} Be7 {[%emt 0:00:24]} 6. Be2 {[%emt 0:05:19]} O-O {[%emt 0:00:17]} 7. O-O {[%emt 0:00:56]} c5 {[%emt 0:02:50]} 8. Nf3 {[%emt 0:01:22]} Nc6 {[%emt 0:00:28]} 9. h3 {[%emt 0:04:08]} a6 {[%emt 0:00:40]} 10. a4 {[%emt 0:00:57]} Re8 {[%emt 0:01:33]} 11. Re1 {[%emt 0:01:01]} Bf8 {[%emt 0:03:15]} 12. Bg5 {[%emt 0:03:31]} h6 {[%emt 0:01:06]} 13. Bxf6 {[%emt 0:15:21]} Qxf6 {[%emt 0:00:33]} 14. Nd5 {[%emt 0:00:45]} Qd8 {[%emt 0:00:20]} 15. Bc4 {[%emt 0:00:32]} Be6 {[%emt 0:02:05]} 16. c3 {[%emt 0:00:49]} Ne5 {[%emt 0:01:48]} 17. Nxe5 {[%emt 0:01:08]} dxe5 {[%emt 0:00:10]} 18. Qb3 {[%emt 0:00:06]} Rb8 {[%emt 0:04:22]} 19. Rad1 {[%emt 0:01:18]} Qg5 {[%emt 0:02:07]} 20. Rd3 {[%emt 0:02:29]} Kh7 {[%emt 0:07:33]} 21. Rg3 {[%emt 0:03:05]} Qd8 {[%emt 0:02:56]} 22. Rd1 {[%emt 0:00:23]} Qa5 {[%emt 0:01:13]} 23. Ne3 {[%emt 0:10:26]} Bxc4 {[%emt 0:03:51]} 24. Qxc4 {[%emt 0:00:10]} Qc7 {[%emt 0:00:55]} 25. Nd5 {[%emt 0:02:15]} Qc6 {[%emt 0:01:00]} 26. a5 {[%emt 0:02:30]} Rbd8 27. Rgd3 {[%emt 0:05:17]} Qe6 28. Qa4 Kh8 {[%emt 0:07:27]} 29. Nc7 {[%emt 0:01:39]} Qc8 {[%emt 0:05:05]} 30. Nxe8 {[%emt 0:01:02]} Rxe8 {[%emt 0:00:11]} 31. Rd7 {[%emt 0:00:17]} c4 {[%emt 0:04:49]} 32. Rxf7 {[%emt 0:00:55]} Rd8 {[%emt 0:02:58]} 33. Rxd8 {[%emt 0:00:49]} Qxd8 {[%emt 0:00:06]} 34. Qd7 {[%emt 0:00:09]} 1-0